bitfinex/quotes_SOLUSD_20240718
["timestamp","ask_amount","ask_price","bid_price","bid_amount"]
[1721327410299,6.3615,157.2,157.16,17.1794337]
[1721327410808,6.361,157.21,157.16,23.5421337]
[1721327411098,6.3613,157.2,157.16,23.5421337]
[1721327411512,15.9019,157.22,157.13,15.9098]
[1721327411814,24.89,157.23,157.15,15.9076]
[1721327412126,6.3613,157.2,157.16,6.3626]
[1721327412617,6.3613,157.2,157.16,1.2725261]
[1721327413284,35.8987,157.25,157.17,15.9059]
[1721327413520,6.3607,157.22,157.17,22.2684]
[1721327413890,6.3609,157.21,157.17,22.2684]
[1721327414205,6.3605,157.22,157.17,22.2683]
[1721327414403,6.361,157.21,157.17,15.9059]
[1721327415393,35.8987,157.25,157.16,6.3628]
[1721327415727,35.8987,157.25,157.14,15.9086]
[1721327415728,35.8987,157.25,157.15,6.3632]
[1721327415910,35.8987,157.25,157.14,22.2722]
[1721327415911,6.3617,157.19,157.14,22.2722]
[1721327416293,6.3622,157.18,157.14,22.2722]
[1721327416897,6.3618,157.19,157.14,22.2722]
[1721327417615,6.3614,157.2,157.15,6.3632]
[1721327418001,6.62467474,157.23,157.16,38.1356]
[1721327418200,7.1642703,157.26,157.21,6.3605]
[1721327418503,7.1642703,157.26,157.17,46.27232925]
[1721327418504,6.3594,157.25,157.2,22.2642]
[1721327418898,6.3597,157.24,157.2,22.2642]
[1721327419201,6.3597,157.24,157.2,15.903]
[1721327419396,6.3602,157.23,157.18,6.362]
[1721327419707,6.3607,157.22,157.17,22.2683]
[1721327420207,41.5929703,157.26,157.17,22.2683]
[1721327420208,6.361,157.21,157.17,15.9059]
[1721327420398,6.3614,157.2,157.14,47.7263]
[1721327420595,6.362,157.19,157.14,22.2723]
[1721327420796,24.89,157.2,157.11,15.912]
[1721327421024,40.7936,157.2,157.11,15.912]
[1721327421193,20.0,157.19,157.11,15.912]
[1721327421394,6.3622,157.18,157.13,6.3641]
[1721327421615,20.0,157.19,157.12,6.3644]
[1721327421898,6.3616,157.2,157.14,15.9088]
[1721327422097,6.3609,157.21,157.15,1.27252491]
[1721327422916,6.3616,157.2,157.14,15.9088]
[1721327423093,16.4263,157.23,157.15,6.363]
[1721327423299,24.89,157.21,157.13,6.3638]
[1721327423501,24.89,157.21,157.11,17.18456004]
[1721327423502,24.89,157.21,157.14,6.3636]
[1721327423799,6.3629,157.16,157.08,21.825]
[1721327424218,6.363,157.16,157.11,6.3648]
[1721327424394,6.363,157.16,157.1,15.9127]
[1721327424395,6.3637,157.14,157.1,15.9127]
[1721327424597,22.3737,157.15,157.1,22.2779]
[1721327424811,22.3737,157.15,157.11,6.3649]
[1721327425211,16.0104,157.2,157.13,15.9102]
[1721327425403,6.3617,157.19,157.15,6.3633]
[1721327425595,6.3617,157.19,157.14,6.3636]
[1721327426012,6.3617,157.19,157.13,22.2742]
[1721327426214,16.0104,157.2,157.13,22.2742]
[1721327426400,6.3625,157.17,157.13,15.9102]
[1721327427503,16.0104,157.2,157.13,22.2742]
[1721327427504,6.3621,157.18,157.13,22.2742]
[1721327427718,6.3625,157.17,157.13,22.2742]
[1721327428124,6.3625,157.17,157.13,15.9102]
[1721327428309,15.7576,157.21,157.17,6.3624]
[1721327429127,22.1185,157.21,157.17,6.3624]
[1721327429310,15.7576,157.21,157.17,6.3624]
[1721327429813,15.7576,157.21,157.18,6.3618]
[1721327429993,15.7576,157.21,157.19,6.3617]
[1721327430200,15.7576,157.21,157.18,22.2671]
[1721327432721,12.744,157.23,157.18,22.2671]
[1721327432935,6.3602,157.23,157.18,22.2671]
[1721327433430,6.3602,157.23,157.19,6.3616]
[1721327434005,6.62323702,157.25,157.22,6.3601]
[1721327434204,0.8052703,157.26,157.23,6.36]
[1721327434400,0.8052703,157.26,157.24,6.3596]
[1721327434929,0.8052703,157.26,157.23,6.3599]
[1721327435237,0.8052703,157.26,157.22,22.2612]
[1721327435238,7.1641703,157.26,157.22,22.2612]
[1721327436509,7.1641703,157.26,157.22,15.9009]
[1721327436710,22.6167,157.25,157.19,15.904]
[1721327436902,22.6167,157.25,157.2,6.3611]
[1721327437226,16.2573,157.25,157.16,15.9066]
[1721327437431,6.3609,157.21,157.16,22.2694]
[1721327437605,24.89,157.24,157.16,22.2694]
[1721327437606,6.3606,157.22,157.17,6.3625]
[1721327438212,6.361,157.21,157.16,22.2694]
[1721327439735,6.361,157.21,157.17,6.3624]
[1721327439926,6.361,157.21,157.16,22.2693]
[1721327440429,6.3613,157.2,157.16,22.2693]
[1721327440819,6.361,157.21,157.16,22.2693]
[1721327441004,6.3603,157.23,157.16,15.9066]
[1721327441200,6.3603,157.23,157.18,6.3618]
[1721327441400,6.3603,157.23,157.18,6.3621]
[1721327441825,6.3603,157.23,157.19,6.3616]
[1721327442619,0.8052703,157.26,157.2,1.2723528]
[1721327442932,0.8052703,157.26,157.25,6.3593]
[1721327444134,0.8052703,157.26,157.21,6.3608]
[1721327444336,7.1643703,157.26,157.21,6.3608]
[1721327444538,6.3593,157.25,157.21,6.3608]
[1721327445118,6.3593,157.25,157.2,22.2639]
[1721327445539,6.3601,157.23,157.17,15.9059]
[1721327445945,6.3598,157.24,157.19,6.3616]
[1721327446643,6.3601,157.23,157.19,6.3616]
[1721327447021,6.3597,157.24,157.19,6.3616]
[1721327448035,6.3602,157.23,157.18,7.63426317]
[1721327448335,15.9698,157.24,157.18,7.63426317]
[1721327448536,15.9698,157.24,157.17,22.2682]
[1721327448745,6.3608,157.22,157.17,22.2682]
[1721327449129,6.3602,157.23,157.19,6.3617]
[1721327449839,6.3605,157.22,157.17,22.268]
[1721327450340,6.3605,157.22,157.18,6.362]
[1721327452325,6.3613,157.2,157.15,22.7104]
[1721327452527,15.9698,157.24,157.15,6.363]
[1721327452826,20.0,157.23,157.15,6.363]
[1721327453031,6.3614,157.2,157.15,6.363]
[1721327453729,6.3618,157.19,157.15,6.363]
[1721327454332,6.3614,157.2,157.15,6.363]
[1721327454820,0.8052703,157.26,157.23,6.36]
[1721327455037,0.8052703,157.26,157.23,22.26]
[1721327455233,0.8052703,157.26,157.24,6.3595]
[1721327456446,0.8052703,157.26,157.23,22.26]
[1721327457152,0.8052703,157.26,157.24,6.3596]
[1721327457329,0.8052703,157.26,157.23,22.2599]
[1721327458437,7.1643703,157.26,157.2,15.903]
[1721327458633,0.8052703,157.26,157.22,6.3604]
[1721327458844,0.8052703,157.26,157.23,17.17162284]
[1721327459034,0.8052703,157.26,157.25,12.7713]
[1721327459233,0.8052703,157.26,157.25,73.3603]
[1721327462260,0.8052703,157.26,157.16,9.4780052]
[1721327462434,0.8052703,157.26,157.11,31.8238]
[1721327462435,6.3606,157.22,157.11,31.8238]
[1721327462637,0.8052703,157.26,157.16,15.9068]
[1721327462833,6.3608,157.22,157.17,6.3624]
[1721327463228,6.3608,157.22,157.18,22.2669]
[1721327463229,6.3605,157.22,157.18,22.2669]
[1721327463429,6.3605,157.22,157.18,15.9049]
[1721327463730,6.3605,157.22,157.18,22.2669]
[1721327464235,6.3605,157.22,157.18,15.9049]
[1721327464434,0.8052703,157.26,157.15,15.908]
[1721327464435,6.361,157.21,157.15,15.908]
[1721327464848,6.3606,157.22,157.17,6.3625]
[1721327465153,0.8052703,157.26,157.21,6.3607]
[1721327465359,0.8052703,157.26,157.19,15.9038]
[1721327465647,0.8052703,157.26,157.22,6.3603]
[1721327465848,0.8052703,157.26,157.22,1.27200785]
[1721327466028,0.8052703,157.26,157.23,15.8998]
[1721327466228,0.8052703,157.26,157.24,1.27183618]
[1721327466442,0.8052703,157.26,157.25,6.3593]
[1721327466830,0.8052703,157.26,157.24,7.63143618]
[1721327467230,0.8052703,157.26,157.24,6.3596]
[1721327467849,0.8052703,157.26,157.24,7.63136523]
[1721327468057,0.8052703,157.26,157.25,6.3593]
[1721327469452,0.8052703,157.26,157.24,6.3596]
[1721327469956,0.8052703,157.26,157.23,22.2597]
[1721327470652,0.8052703,157.26,157.24,6.3596]
[1721327471056,0.8052703,157.26,157.24,7.63141488]
[1721327471563,0.8052703,157.26,157.24,6.3596]
[1721327471741,0.8052703,157.26,157.23,22.2599]
[1721327471946,0.8052703,157.26,157.23,15.8998]
[1721327472256,0.8052703,157.26,157.24,1.27184275]
[1721327472450,0.8052703,157.26,157.23,15.8998]
[1721327472645,0.8052703,157.26,157.24,1.27181407]
[1721327472869,0.8052703,157.26,157.24,7.63121407]
[1721327474844,0.8052703,157.26,157.25,6.3593]
[1721327475047,0.8052703,157.26,157.23,22.2595]
[1721327475769,0.8052703,157.26,157.24,6.3595]
[1721327476247,0.8052703,157.26,157.23,22.2597]
[1721327476455,0.8052703,157.26,157.2,15.9026]
[1721327476675,6.3593,157.25,157.2,15.9026]
[1721327476983,7.1642703,157.26,157.21,7.63274602]
[1721327477342,6.3593,157.25,157.21,6.3607]
[1721327477542,7.1641703,157.26,157.21,6.3607]
[1721327477772,0.8052703,157.26,157.2,15.9026]
[1721327477983,7.1641703,157.26,157.21,6.3607]
[1721327478263,7.1641703,157.26,157.22,6.3604]
[1721327478657,7.1641703,157.26,157.21,6.3608]
[1721327478866,7.1641703,157.26,157.2,15.9026]
[1721327479245,0.8052703,157.26,157.22,6.3604]
[1721327479453,7.1641703,157.26,157.21,6.3607]
[1721327480370,7.1641703,157.26,157.2,15.9026]
[1721327480371,0.8052703,157.26,157.2,15.9026]
[1721327480552,6.3598,157.24,157.2,15.9026]
[1721327481070,27.9252,157.23,157.18,6.3621]
[1721327481950,6.3605,157.22,157.18,6.3621]
[1721327482151,27.9252,157.23,157.18,6.3621]
[1721327482473,6.3613,157.21,157.16,6.3627]
[1721327482656,21.565,157.23,157.16,6.3627]
[1721327482852,6.3613,157.2,157.15,6.3632]
[1721327483878,6.3613,157.2,157.16,6.3628]
[1721327484570,6.3613,157.2,157.15,6.3632]
[1721327485659,6.3617,157.19,157.15,6.3632]
[1721327485871,6.3617,157.19,157.14,22.2728]
[1721327486069,72.4966,157.23,157.05,31.67488716]
[1721327486258,15.9067,157.17,157.08,15.9149]
[1721327486460,6.3638,157.14,157.1,6.3653]
[1721327486660,6.3634,157.15,157.1,6.3653]
[1721327487170,6.3637,157.14,157.1,6.3653]
[1721327487377,6.3637,157.14,157.09,6.3657]
[1721327488056,6.3634,157.15,157.1,6.3651]
[1721327488257,6.363,157.16,157.12,6.3645]
[1721327488673,6.363,157.16,157.11,6.3648]
[1721327489061,24.93,157.19,157.1,15.9128]
[1721327489062,6.3634,157.15,157.1,22.278]
[1721327489260,6.3634,157.15,157.11,6.3649]
[1721327489552,6.3639,157.14,157.1,15.9128]
[1721327489765,6.3642,157.13,157.1,15.9128]
[1721327489968,6.3642,157.13,157.07,15.9163]
[1721327490149,15.0157,157.16,157.09,6.3655]
[1721327490351,6.3659,157.09,157.04,22.287]
[1721327490549,6.3659,157.09,157.04,22.2871]
[1721327490774,24.93,157.13,157.04,15.9194]
[1721327490974,6.3663,157.08,157.04,15.9194]
[1721327491278,20.0,157.07,156.98,6.2449]
[1721327491576,6.3686,157.02,156.95,15.928]
[1721327492071,6.3686,157.02,156.94,6.2449]
[1721327492072,6.3682,157.03,156.98,6.3699]
[1721327492646,6.3678,157.04,156.99,7.64348458]
[1721327492847,15.4385,157.08,157.02,6.3685]
[1721327493067,6.3671,157.06,157.01,15.9221]
[1721327493268,6.3666,157.07,157.01,15.9221]
[1721327493586,6.367,157.06,157.01,15.9221]
[1721327493769,6.3675,157.05,157.01,15.9221]
[1721327495063,6.3675,157.05,157.01,22.291]
[1721327495779,32.3618,157.12,157.02,6.3684]
[1721327495952,20.0,157.11,157.03,6.3679]
[1721327496150,6.3652,157.11,157.02,51.0087]
[1721327496350,6.3645,157.13,157.08,6.3661]
[1721327496571,6.3646,157.12,157.07,22.2822]
[1721327496982,6.3784,157.15,157.04,15.9191]
[1721327497190,6.3784,157.15,157.05,1.27317377]
[1721327497358,21.7602515,157.17,157.08,15.915]
[1721327497560,37.6670515,157.17,157.09,1.27294803]
[1721327497754,6.3641,157.13,157.09,1.27289847]
[1721327497955,6.3641,157.13,157.08,15.915]
[1721327498169,6.3641,157.13,157.08,22.2808]
[1721327498567,6.3641,157.13,157.09,1.27300986]
[1721327498868,6.3641,157.13,157.08,22.2808]
[1721327499054,6.3646,157.12,157.08,22.2808]
[1721327499259,6.3642,157.13,157.08,22.2808]
[1721327499670,6.3642,157.13,157.09,6.3656]
[1721327501478,6.3642,157.13,157.09,7.63858932]
[1721327502058,6.3637,157.14,157.09,1.27298932]
[1721327502282,6.3634,157.15,157.1,6.3653]
[1721327502695,6.363,157.16,157.11,7.63775879]
[1721327503183,6.363,157.16,157.11,6.3649]
[1721327503568,15.1801,157.21,157.12,15.911]
[1721327503768,20.0,157.2,157.13,1.27258349]
[1721327504091,20.0,157.2,157.13,7.63658349]
[1721327504266,20.0,157.2,157.12,22.2754]
[1721327504976,6.3629,157.16,157.12,22.2754]
[1721327505370,6.3633,157.15,157.12,15.911]
[1721327505581,6.3636,157.15,157.1,13.0088]
[1721327505766,6.3641,157.14,157.09,37.9095]
[1721327505971,6.3641,157.14,157.09,22.2793]
[1721327506284,6.3634,157.15,157.11,6.3648]
[1721327506500,15.9047,157.19,157.09,15.9137]
[1721327506664,6.364,157.14,157.1,1.27289241]
[1721327506864,6.363,157.16,157.11,6.3648]
[1721327507493,6.3626,157.17,157.12,7.63721732]
[1721327507670,6.3626,157.17,157.13,6.3641]
[1721327508089,6.3626,157.17,157.14,1.27268958]
[1721327508283,6.3626,157.17,157.12,1.27257733]
[1721327508782,6.3621,157.18,157.12,1.27257733]
[1721327508972,6.3618,157.19,157.13,15.91]
[1721327509174,6.3618,157.19,157.14,7.63608425]
[1721327509374,6.3609,157.21,157.17,6.3623]
[1721327509674,263.752,157.24,157.18,17.17757362]
[1721327509675,6.36,157.24,157.18,17.17757362]
[1721327509997,6.3593,157.25,157.2,6.361]
[1721327510368,6.3597,157.24,157.2,6.361]
[1721327510593,0.8052703,157.26,157.19,6.3616]
[1721327510797,6.3601,157.23,157.2,1.27209838]
[1721327511671,6.3598,157.24,157.2,7.63339838]
[1721327511871,6.3598,157.24,157.2,6.3613]
[1721327512071,0.8052703,157.26,157.21,6.3607]
[1721327512277,0.8052703,157.26,157.21,7.63277477]
[1721327512683,6.3593,157.25,157.21,1.27207477]
[1721327513084,0.8052703,157.26,157.21,1.27207477]
[1721327513302,0.8052703,157.26,157.22,6.3603]
[1721327513504,0.8052703,157.26,157.23,1.27190777]
[1721327514097,7.1642703,157.26,157.23,1.27190777]
[1721327514596,7.1642703,157.26,157.21,7.63268543]
[1721327514990,7.1642703,157.26,157.22,6.3604]
[1721327515699,6.3594,157.25,157.21,1.27188543]
[1721327516385,6.3594,157.25,157.2,22.2641]
[1721327517496,7.1641703,157.26,157.21,1.2720472]
[1721327518000,0.8052703,157.26,157.22,6.3602]
[1721327518192,0.8052703,157.26,157.23,1.27188093]
[1721327518497,0.8052703,157.26,157.22,7.63208387]
[1721327518686,0.8052703,157.26,157.25,6.3593]
[1721327518895,0.8052703,157.26,157.25,7.63094897]
[1721327519674,0.8052703,157.26,157.25,6.3593]
[1721327520085,0.8052703,157.26,157.25,7.63095243]
[1721327520697,0.8052703,157.26,157.25,6.3593]
[1721327521697,0.8052703,157.26,157.25,29.2096]
[1721327521890,0.8052703,157.26,157.25,74.2096]
[1721327524394,0.8052703,157.26,157.25,29.2096]
[1721327524604,0.8052703,157.26,157.25,30.48115679]
[1721327525107,0.8052703,157.26,157.25,30.48115019]
[1721327525309,0.8052703,157.26,157.25,29.2096]
[1721327527403,0.8052703,157.26,157.22,21.3559]
[1721327527613,0.8052703,157.26,157.23,1.27171894]
[1721327528111,0.8052703,157.26,157.25,6.3593]
[1721327528681,0.8052703,157.26,157.23,15.8998]
[1721327528897,0.8052703,157.26,157.24,6.3596]
[1721327529189,0.8052703,157.26,157.25,6.3593]
[1721327529398,0.8052703,157.26,157.25,28.98688805]
[1721327529811,0.8052703,157.26,157.25,27.7152]
[1721327530377,0.8052703,157.26,157.25,72.7152]
[1721327535999,0.8052703,157.26,157.25,27.7152]
[1721327537211,0.8052703,157.26,157.25,72.7152]
[1721327538206,0.8052703,157.26,157.25,73.98665756]
[1721327538508,0.8052703,157.26,157.25,98.85665756]
[1721327539803,0.8052703,157.26,157.25,97.5852]
[1721327539996,0.8052703,157.26,157.25,98.8565922]
[1721327541392,0.8052703,157.26,157.25,97.5852]
[1721327541700,0.8052703,157.26,157.25,72.7152]
[1721327542099,0.8052703,157.26,157.25,51.3593]
[1721327542412,0.8052703,157.26,157.25,52.63079922]
[1721327542713,0.8052703,157.26,157.25,32.50080384]
[1721327543016,0.8052703,157.26,157.25,77.50080384]
[1721327543984,6.61784848,157.35,157.34,6.3556]
[1721327544190,12.6749,157.39,157.35,6.3552]
[1721327544416,12.6749,157.39,157.34,7.62649498]
[1721327544913,23.30337857,157.42,157.35,6.3552]
[1721327545218,6.3539,157.39,157.34,6.3555]
[1721327545395,6.3542,157.38,157.33,22.2455]
[1721327545722,6.3546,157.37,157.33,15.8896]
[1721327546431,23.30337857,157.42,157.3,15.8927]
[1721327546432,6.355,157.36,157.3,15.8927]
[1721327547085,6.355,157.36,157.29,31.7865]
[1721327547086,15.8834,157.4,157.32,15.8905]
[1721327547290,6.3543,157.38,157.33,7.62672326]
[1721327547728,6.3544,157.37,157.33,7.62672326]
[1721327547899,6.3544,157.37,157.33,1.27102326]
[1721327548100,6.3544,157.37,157.32,22.2468]
[1721327548301,6.3544,157.37,157.33,6.356]
[1721327548500,6.3541,157.38,157.33,6.356]
[1721327548730,6.3541,157.38,157.33,7.62701947]
[1721327548943,6.3533,157.4,157.35,6.3549]
[1721327549116,13.77427857,157.42,157.36,1.27089536]
[1721327549323,7.1579703,157.42,157.36,15.8868]
[1721327549527,6.3528,157.41,157.37,6.3543]
[1721327549835,6.3528,157.41,157.37,7.62508023]
[1721327552325,6.3533,157.4,157.36,22.2415]
[1721327553247,6.3533,157.4,157.36,15.8868]
[1721327553404,6.3544,157.37,157.33,6.356]
[1721327553609,0.8052703,157.42,157.34,1.27109088]
[1721327553913,0.8052703,157.42,157.34,6.3556]
[1721327553914,6.3539,157.39,157.34,6.3556]
[1721327554116,0.8052703,157.42,157.35,6.5045]
[1721327554418,0.8052703,157.42,157.41,6.3528]
[1721327554732,0.8052703,157.42,157.41,7.62321014]
[1721327555747,0.8052703,157.42,157.41,68.71731014]
[1721327556032,0.8052703,157.42,157.41,75.17511014]
[1721327556228,0.8052703,157.42,157.41,105.6688]
[1721327557618,0.8052703,157.42,157.41,106.93873201]
[1721327558634,7.03e-05,157.42,157.41,106.93873201]
[1721327558834,7.03e-05,157.42,157.41,126.06873201]
[1721327559043,272.959,157.53,157.49,15.8738]
[1721327559246,15.359,157.53,157.5,7.61867196]
[1721327560046,15.359,157.53,157.5,1.26967196]
[1721327560810,21.707,157.53,157.49,15.8738]
[1721327561211,15.359,157.53,157.49,22.2233]
[1721327561411,21.707,157.53,157.49,15.8738]
[1721327561628,15.359,157.53,157.49,22.2233]
[1721327561823,21.707,157.53,157.49,22.2233]
[1721327562029,21.707,157.53,157.49,15.8738]
[1721327562635,6.3484,157.52,157.48,6.3499]
[1721327562849,6.3484,157.52,157.47,6.3503]
[1721327563054,6.3484,157.52,157.48,1.26979538]
[1721327563251,6.3484,157.52,157.48,7.61969538]
[1721327563447,15.359,157.53,157.48,6.3496]
[1721327563638,6.3489,157.51,157.46,15.8764]
[1721327563955,6.3489,157.51,157.47,6.3503]
[1721327564153,6.3485,157.52,157.47,6.3503]
[1721327564361,6.3485,157.52,157.47,7.62018397]
[1721327564728,6.3485,157.52,157.47,6.3503]
[1721327565342,15.359,157.53,157.46,22.2271]
[1721327566498,15.359,157.53,157.43,15.8794]
[1721327566621,6.3485,157.52,157.47,6.3502]
[1721327566827,6.3493,157.5,157.45,22.228]
[1721327567027,6.3491,157.51,157.46,7.62042094]
[1721327567519,6.3491,157.51,157.47,6.3503]
[1721327567721,6.3495,157.5,157.45,22.2281]
[1721327567921,6.3495,157.5,157.46,6.3507]
[1721327568147,6.3495,157.5,157.45,22.2283]
[1721327568353,6.3496,157.49,157.45,22.2283]
[1721327568751,15.359,157.53,157.47,15.8752]
[1721327568931,21.707,157.53,157.49,6.3495]
[1721327569254,15.359,157.53,157.49,7.61920092]
[1721327569631,15.359,157.53,157.5,6.3491]
[1721327569829,15.359,157.53,157.48,6.3496]
[1721327570030,15.359,157.53,157.49,7.61928615]
[1721327570458,21.7071,157.53,157.49,7.61928615]
[1721327570661,21.7071,157.53,157.48,6.3498]
[1721327570849,21.7071,157.53,157.48,7.61958624]
[1721327571043,21.7071,157.53,157.49,6.3495]
[1721327571250,15.359,157.53,157.5,1.26978641]
[1721327571555,15.359,157.53,157.5,7.61888641]
[1721327571950,21.707,157.53,157.49,6.3495]
[1721327572154,21.707,157.53,157.48,6.3499]
[1721327572775,21.707,157.53,157.48,7.61969042]
[1721327573057,15.359,157.53,157.49,6.3492]
[1721327573251,21.7072,157.53,157.48,7.61959042]
[1721327574840,15.359,157.53,157.49,6.3495]
[1721327575173,15.359,157.53,157.5,7.61879138]
[1721327575776,6.4185,157.55,157.51,6.3486]
[1721327576068,6.4185,157.55,157.5,7.61879138]
[1721327576265,6.3478,157.54,157.5,1.26969138]
[1721327576445,6.348,157.53,157.49,22.2226]
[1721327577375,6.3485,157.52,157.48,6.3498]
[1721327577580,6.3491,157.51,157.46,15.8763]
[1721327578047,6.3493,157.5,157.46,15.8763]
[1721327578653,6.3493,157.5,157.46,22.2271]
[1721327579761,6.3489,157.51,157.46,22.2271]
[1721327580572,15.8697,157.54,157.46,15.8763]
[1721327580871,6.3489,157.51,157.46,22.2267]
[1721327581049,40.7397,157.54,157.44,6.3512]
[1721327581253,6.3501,157.48,157.44,6.3512]
[1721327581454,6.3514,157.45,157.41,6.3527]
[1721327581656,16.6112,157.5,157.4,37.9381]
[1721327581657,16.6112,157.5,157.4,22.0556]
[1721327581855,16.6112,157.5,157.42,1.27024807]
[1721327582067,6.3508,157.46,157.42,22.2329]
[1721327582375,6.4909,157.47,157.39,15.8835]
[1721327583078,6.3519,157.44,157.39,22.237]
[1721327583252,6.4909,157.47,157.41,6.3528]
[1721327583447,6.3515,157.45,157.41,6.3527]
[1721327583666,6.3504,157.47,157.43,6.3517]
[1721327583883,6.3498,157.49,157.45,6.3511]
[1721327584059,16.6112,157.5,157.46,6.3506]
[1721327584565,22.9604,157.5,157.46,6.3506]
[1721327584772,6.3497,157.49,157.45,17.14774013]
[1721327586569,6.35,157.48,157.45,17.14774013]
[1721327587668,6.3497,157.49,157.45,17.14774013]
[1721327587983,6.35,157.48,157.45,1.27004013]
[1721327588183,6.3493,157.5,157.45,7.62114013]
[1721327588355,57.0448,157.54,157.47,6.3501]
[1721327588356,6.3487,157.52,157.47,6.3501]
[1721327588555,6.3487,157.52,157.48,1.26981358]
[1721327589378,6.3488,157.51,157.47,7.61993552]
[1721327589572,6.3485,157.52,157.48,6.3498]
[1721327589855,6.3488,157.51,157.47,7.62003552]
[1721327590056,6.3481,157.53,157.49,6.3495]
[1721327590285,6.3485,157.52,157.48,22.2244]
[1721327590587,6.3481,157.53,157.49,1.26967397]
[1721327590890,6.61179623,157.55,157.49,1.26967397]
[1721327591558,6.61179623,157.55,157.48,15.8745]
[1721327591975,6.61179623,157.55,157.47,6.3502]
[1721327592155,6.3489,157.51,157.47,6.3502]
[1721327592355,6.3489,157.51,157.45,47.6314]
[1721327592592,6.3492,157.5,157.46,1.26989932]
[1721327592890,6.3492,157.5,157.45,15.8773]
[1721327593089,6.3492,157.5,157.46,1.26994591]
[1721327593591,15.8713,157.52,157.42,40.7504]
[1721327593786,6.3495,157.5,157.46,6.3508]
[1721327594084,6.3492,157.5,157.46,15.876]
[1721327594288,6.3492,157.5,157.46,17.14600302]
[1721327594865,6.3496,157.49,157.46,1.27000302]
[1721327595065,6.3496,157.49,157.46,1.27000588]
[1721327595282,6.3489,157.51,157.46,7.62080588]
[1721327595589,15.8692,157.54,157.47,6.3502]
[1721327595887,6.3488,157.51,157.47,6.3502]
[1721327596066,6.3493,157.5,157.46,6.3507]
[1721327596390,6.3493,157.5,157.46,7.62060042]
[1721327596581,6.3489,157.51,157.47,6.3502]
[1721327596783,6.3489,157.51,157.46,6.3506]
[1721327597076,6.3488,157.51,157.47,1.26987701]
[1721327597467,6.3488,157.51,157.47,7.62017701]
[1721327598990,6.3483,157.53,157.48,6.3499]
[1721327599165,6.3483,157.53,157.49,1.26971396]
[1721327599368,6.61179623,157.55,157.49,7.61891396]
[1721327599669,6.3483,157.53,157.49,1.26971396]
[1721327600773,22.48039623,157.55,157.45,6.3508]
[1721327600978,6.3489,157.51,157.46,1.26984587]
[1721327601175,6.3492,157.5,157.46,1.26984587]
[1721327601894,6.3492,157.5,157.45,45.0]
[1721327602196,22.48039623,157.55,157.47,6.3503]
[1721327602197,6.3489,157.51,157.47,6.3503]
[1721327602392,6.3489,157.51,157.48,1.26978975]
[1721327602579,6.3489,157.51,157.47,6.3503]
[1721327602765,6.3494,157.5,157.46,17.14660915]
[1721327602967,6.3494,157.5,157.46,15.8768]
[1721327603977,6.3494,157.5,157.46,22.2272]
[1721327604168,6.3509,157.46,157.41,6.3527]
[1721327604371,6.3514,157.45,157.42,1.27025082]
[1721327604568,15.8784,157.45,157.38,6.354]
[1721327604770,16.1623,157.49,157.39,6.3535]
[1721327604771,6.3523,157.43,157.39,6.3535]
[1721327604992,6.3526,157.42,157.38,6.3539]
[1721327606092,6.3526,157.42,157.37,43.6813]
[1721327606295,6.3526,157.42,157.37,37.327]
[1721327606474,6.3526,157.42,157.38,7.62446832]
[1721327607102,6.3526,157.42,157.38,1.27056832]
[1721327607271,6.3529,157.41,157.38,1.27056832]
[1721327607596,15.8774,157.46,157.38,1.27056832]
[1721327608982,15.8774,157.46,157.39,6.3536]
[1721327609298,6.3516,157.44,157.4,1.27050987]
[1721327609697,24.87,157.48,157.38,6.354]
[1721327609698,15.8765,157.47,157.38,6.354]
[1721327610005,6.3521,157.43,157.38,6.354]
[1721327610597,6.3516,157.44,157.39,7.62399235]